fUST/lending_fUST_20240111
["ID","MTS","AMOUNT","RATE_DAILY","PERIOD"]
[311159312,1704946239136,-168.57048586,0.0002,2]
[311159313,1704946239145,-200.0,0.00020951,2]
[311159314,1704946239154,-232.56616313,0.00021,2]
[311159315,1704946239163,-21896.11056994,0.00021,2]
[311159316,1704946239172,-1546.81985246,0.00021,2]
[311159317,1704946239181,-193.97785315,0.00021,2]
[311159318,1704946239190,-326.7917286,0.00021,2]
[311159319,1704946239199,-451.7797763,0.00021014,2]
[311159320,1704946239208,-166.666666,0.00021918,2]
[311159321,1704946239217,-337.0634007,0.00021918,2]
[311159322,1704946239227,-156.88951629,0.00022,2]
[311159323,1704946239236,-4918.87947459,0.00022,2]
[311159324,1704946239244,-3935.17481612,0.00022,2]
[311159325,1704946239253,-786.22948107,0.00022,2]
[311159326,1704946239362,-292.87321948,0.00022,4]
[311159327,1704946239372,-324.2972664,0.000224,2]
[311159328,1704946239381,-166.666666,0.00022431,2]
[311159329,1704946239390,-166.666666,0.00022944,2]
[311159330,1704946239400,-2093.45221107,0.00023,2]
[311159331,1704946239409,-9923.17263833,0.00023,2]
[311159332,1704946239418,-500.0,0.00023288,2]
[311159333,1704946239427,-500.0,0.00023288,2]
[311159334,1704946239436,-465.14061054,0.00023288,2]
[311159335,1704946239446,-500.0,0.00023288,2]
[311159336,1704946239455,-500.0,0.00023288,2]
[311159337,1704946239465,-500.0,0.00023288,2]
[311159338,1704946239474,-500.0,0.00023288,2]
[311159339,1704946239483,-478.68601719,0.00023288,2]
[311159340,1704946239492,-500.0,0.00023288,2]
[311159341,1704946239501,-268.38946935,0.00023288,2]
[311159342,1704946239511,-500.0,0.00023288,2]
[311159343,1704946239520,-428.98625905,0.00023288,2]
[311159344,1704946239529,-500.0,0.00023288,2]
[311159345,1704946239538,-576.93494096,0.00023288,2]
[311159346,1704946239547,-500.0,0.00023288,2]
[311159347,1704946239557,-500.0,0.00023288,2]
[311159348,1704946239568,-500.0,0.00023288,2]
[311159349,1704946239581,-500.0,0.00023288,2]
[311159350,1704946239590,-500.0,0.00023288,2]
[311159351,1704946239599,-500.0,0.00023288,2]
[311159352,1704946239609,-200.81419542,0.00023288,2]
[311159353,1704946239618,-500.0,0.00023288,2]
[311159354,1704946239628,-500.0,0.00023288,2]
[311159355,1704946239637,-319.12401146,0.00023288,2]
[311159356,1704946239646,-500.0,0.00023288,2]
[311159357,1704946239655,-500.0,0.00023288,2]
[311159358,1704946239665,-384.62329398,0.00023288,2]
[311159359,1704946239674,-500.0,0.00023288,2]
[311159360,1704946239684,-500.0,0.00023288,2]
[311159361,1704946239693,-500.0,0.00023288,2]
[311159362,1704946239702,-500.0,0.00023288,2]
[311159363,1704946239711,-542.66404562,0.00023288,2]
[311159364,1704946239720,-640.3245578,0.00023288,2]
[311159365,1704946239729,-499.99999999,0.00023288,2]
[311159366,1704946239738,-256.12982311,0.00023288,2]
[311159367,1704946239747,-166.666666,0.00023456,2]
[311159368,1704946239756,-166.666666,0.00023969,2]
[311159369,1704946239765,-497.12734932,0.0002398,5]
[311159370,1704946239775,-614.12133667,0.00024,2]
[311159371,1704946239784,-155.24711582,0.00024,2]
[311159372,1704946239793,-2293.60196635,0.00024,2]
[311159373,1704946239802,-166.666666,0.00024482,2]
[311159374,1704946239811,-200.0,0.00024658,2]
[311159375,1704946239820,-687.75702701,0.000247,2]
[311159376,1704946239829,-324.2972664,0.000249,2]
[311159377,1704946239838,-4711.91259146,0.00025,2]
[311159378,1704946239848,-677.62834989,0.00025,2]
[311159379,1704946239857,-3000.0,0.00025,2]
[311159380,1704946239866,-155.2351122,0.00025,2]
[311159381,1704946239875,-155.0,0.00025,2]
[311159382,1704946239883,-295.41689888,0.00025,2]
[311159383,1704946239892,-7193.15698043,0.00025297,2]
[311159384,1704946239902,-240.7469676,0.00026,2]
[311159385,1704946239911,-525.99300196,0.00026,2]
[311159386,1704946239920,-3645.64225585,0.00026,2]
[311159387,1704946239929,-722.17488137,0.000264,2]
[311159388,1704946239938,-309.94478728,0.000265,2]
[311159389,1704946239947,-733.338016,0.00027,2]
[311159390,1704946239957,-309.84518051,0.00027,2]
[311159391,1704946239966,-500.0,0.00027397,2]
[311159392,1704946239975,-155.0,0.00027397,2]
[311159393,1704946239984,-324.2972664,0.000274,2]
[311159394,1704946239993,-34815.28968525,0.000275,2]
[311159395,1704946240002,-500.0,0.00027534,2]
[311159397,1704946240011,-500.0,0.00027671,2]
[311159398,1704946240020,-625.10874407,0.0002772,2]
[311159399,1704946240029,-500.0,0.00027808,2]
[311159400,1704946240038,-500.0,0.00027945,2]
[311159401,1704946240046,-5267.08433892,0.00028036,2]
[311159402,1704946240055,-500.0,0.00028082,2]
[311159403,1704946240064,-500.0,0.00028219,2]
[311159404,1704946240073,-500.0,0.00028356,2]
[311159405,1704946240082,-500.0,0.00028493,2]
[311159406,1704946240092,-9100.04106185,0.0002862,4]
[311159407,1704946240101,-500.0,0.0002863,2]
[311159408,1704946240110,-1500.0,0.000287,2]
[311159409,1704946240118,-254.23001474,0.00028701,3]
[311159410,1704946240127,-500.0,0.00028767,2]
[311159411,1704946240136,-155.0,0.00028767,2]
[311159412,1704946240145,-500.0,0.00028904,2]
[311159413,1704946240154,-1888.96501401,0.0002899,2]
[311159414,1704946240162,-370.97183162,0.00028998,4]
[311159415,1704946240171,-476.22449285,0.00028998,4]
[311159416,1704946240180,-268.6869823,0.00028998,4]
[311159417,1704946240193,-500.0,0.00028998,4]
[311159418,1704946240229,-426.2336021,0.00028998,4]
[311159419,1704946240238,-500.0,0.00028998,4]
[311159420,1704946240248,-500.0,0.00028998,4]
[311159421,1704946240257,-337.9120652,0.00028998,4]
[311159422,1704946240266,-500.0,0.00028998,4]
[311159423,1704946240275,-647.93032513,0.00028998,4]
[311159424,1704946240285,-419.55359402,0.00028998,4]
[311159425,1704946240294,-500.0,0.00028998,4]
[311159426,1704946240303,-500.0,0.00028998,4]
[311159427,1704946240312,-500.0,0.00028998,4]
[311159428,1704946240321,-440709.77646,0.00028999,2]
[311159429,1704946240331,-155.0,0.00029,2]
[311159430,1704946240343,-3807.00559693,0.00029,2]
[311159431,1704946240353,-79469.02841882,0.00029,2]
[311159432,1704946240362,-500.0,0.00029041,2]
[311159433,1704946240371,-620.2554372,0.00029106,2]
[311159434,1704946240380,-3349.22406971,0.00029111,2]
[311159435,1704946240390,-5000.0,0.00029111,5]
[311159436,1704946240399,-50000.0,0.00029111,2]
[311159437,1704946240408,-64166.75772418,0.00029111,2]
[311159438,1704946240417,-5000.0,0.00029111,5]
[311159439,1704946240426,-6228.74273541,0.00029111,3]
[311159440,1704946240436,-5000.0,0.00029144,5]
[311159441,1704946240445,-35000.0,0.00029154,2]
[311159442,1704946240454,-500.0,0.00029178,2]
[311159443,1704946240463,-150.98490151,0.00029215,7]
[311159444,1704946240473,-500.0,0.00029315,2]
[311159445,1704946240482,-500.0,0.00029452,2]
[311159446,1704946240491,-152.31502045,0.00029507,2]
[311159447,1704946240501,-500.0,0.00029589,2]
[311159448,1704946240510,-152.31502045,0.00029674,2]
[311159449,1704946240518,-153.73462599,0.00029683,2]
[311159450,1704946240528,-1500.0,0.000297,2]
[311159451,1704946240537,-500.0,0.00029726,2]
[311159452,1704946240546,-334786.13071337,0.0002979,7]
[311159453,1704946240556,-153.73462599,0.00029799,2]
[311159454,1704946240565,-150.98490151,0.00029812,4]
[311159455,1704946240577,-500.0,0.00029863,2]
[311159456,1704946240586,-152.31502045,0.00029884,2]
[311159457,1704946240596,-156.46544226,0.00029886,2]
[311159458,1704946240605,-38379.93475574,0.000299,2]
[311159459,1704946240614,-324.2972664,0.000299,2]
[311159460,1704946240624,-152.31502045,0.00029919,2]
[311159461,1704946240633,-10623.80376589,0.00029974,2]
[311159463,1704946240642,-27605.50971265,0.0002999,7]
[311159465,1704946240655,-10202.84952288,0.0002999,7]
[311159467,1704946240668,-185481.15244629,0.0002999,7]
[311159469,1704946240678,-500.0,0.00029999,2]
[311159471,1704946240687,-161.39102364,0.00029999,10]
[311159473,1704946240697,-236.54101658,0.0003,7]
[311159474,1704946240706,-1865.18032884,0.0003,4]
[311159475,1704946240716,-6975.26133049,0.0003,4]
[311159476,1704946240725,-686.8051383,0.0003,4]
[311159477,1704946240734,-15040.88068289,0.0003,4]
[311159478,1704946240743,-639.80669723,0.0003,4]
[311159479,1704946240752,-463.46661998,0.0003,4]
[311159481,1704946240761,-899.90173962,0.0003,2]
[311159482,1704946240770,-500.0,0.0003,7]
[311159483,1704946240779,-500.0,0.0003,7]
[311159484,1704946240788,-500.0,0.0003,7]
[311159485,1704946240796,-500.0,0.0003,7]
[311159486,1704946240805,-500.0,0.0003,7]
[311159487,1704946240814,-500.0,0.0003,7]
[311159488,1704946240823,-500.0,0.0003,7]
[311159489,1704946240832,-500.0,0.0003,7]
[311159490,1704946240842,-500.0,0.0003,7]
[311159491,1704946240851,-500.0,0.0003,7]
[311159492,1704946240859,-562.12,0.0003,7]
[311159493,1704946240868,-760.83645232,0.0003,2]
[311159494,1704946240877,-6183.76397391,0.0003,2]
[311159495,1704946240886,-2188.79308094,0.0003,2]
[311159496,1704946240895,-222906.78947165,0.0003,2]
[311159497,1704946240904,-19251.12813979,0.0003,3]
[311159498,1704946240913,-8035.64264101,0.0003,14]
[311159500,1704946240923,-31386.13130963,0.0003,10]
[311159501,1704946240931,-18553.45565274,0.0003,2]
[311159503,1704946240940,-698.89862508,0.0003,2]
[311159504,1704946240950,-500.0,0.0003,7]
[311159505,1704946240959,-500.0,0.0003,7]
[311159506,1704946240968,-11908.01427053,0.0003,5]
[311159507,1704946240977,-169.4,0.0003,2]
[311159508,1704946240986,-169.4,0.0003,2]
[311159509,1704946240995,-155.18046676,0.0003,4]
[311159510,1704946241004,-229.0,0.0003,2]
[311159511,1704946241013,-1119.333674,0.0003,2]
[311159512,1704946241022,-1119.333674,0.0003,2]
[311159513,1704946241031,-5518.496776,0.0003,2]
[311159514,1704946241040,-5518.496776,0.0003,2]
[311159515,1704946241049,-153.73462599,0.00030003,7]
[311159516,1704946241058,-153.0,0.00030036,2]
[311159517,1704946241067,-2000.0,0.000301,2]
[311159518,1704946241075,-2000.0,0.0003011,2]
[311159519,1704946241084,-2000.0,0.0003012,2]
[311159520,1704946241095,-734.76379061,0.00030126,4]
[311159521,1704946241105,-2448.05627337,0.00030126,2]
[311159522,1704946241114,-164.11953565,0.00030126,2]
[311159523,1704946241123,-501.00894022,0.00030126,2]
[311159524,1704946241132,-282.67247261,0.00030126,3]
[311159525,1704946241141,-409.88428547,0.00030126,2]
[311159526,1704946241150,-300.0,0.00030126,4]
[311159527,1704946241159,-200.0,0.00030126,2]
[311159528,1704946241168,-2794.48662757,0.00030126,4]
[311159529,1704946241177,-4452.61455502,0.00030126,4]
[311159530,1704946241186,-155.0,0.00030126,2]
[311159531,1704946241195,-1025.8328647,0.00030126,2]
[311159532,1704946241204,-230.0,0.00030126,3]
[311159533,1704946241213,-197.37626976,0.0003013,2]
[311159534,1704946241222,-2000.0,0.0003013,2]
[311159535,1704946241231,-169.4,0.00030136,2]
[311159536,1704946241240,-169.4,0.00030136,2]
[311159537,1704946241249,-1119.333674,0.00030136,2]
[311159538,1704946241258,-1119.333674,0.00030136,2]
[311159539,1704946241267,-5518.496776,0.00030136,2]
[311159540,1704946241276,-5518.496776,0.00030136,2]
[311159541,1704946241285,-500.0,0.00030136,2]
[311159542,1704946241294,-500.0,0.00030136,2]
[311159543,1704946241302,-500.0,0.00030136,2]
[311159544,1704946241311,-500.0,0.00030136,2]
[311159545,1704946241320,-500.0,0.00030136,2]
[311159546,1704946241329,-500.25239641,0.00030136,2]
[311159547,1704946241339,-500.0,0.00030136,2]
[311159548,1704946241349,-500.0,0.00030136,2]
[311159549,1704946241358,-404.64629949,0.00030136,2]
[311159550,1704946241368,-500.0,0.00030136,2]
[311159551,1704946241457,-258.27903606,0.00030136,2]
[311159552,1704946241467,-501.95390524,0.00030136,2]
[311159553,1704946241477,-500.0,0.00030136,2]
[311159554,1704946241486,-311.39649081,0.00030136,2]
[311159555,1704946241495,-500.0,0.00030136,2]
[311159556,1704946241504,-545.28763592,0.00030136,2]
[311159557,1704946241513,-500.0,0.00030136,2]
[311159558,1704946241522,-956.81,0.00030136,2]
[311159559,1704946241532,-500.0,0.00030136,2]
[311159560,1704946241541,-500.0,0.00030136,2]
[311159561,1704946241550,-500.0,0.00030136,2]
[311159562,1704946241560,-500.0,0.00030136,2]
[311159563,1704946241571,-500.0,0.00030136,2]
[311159564,1704946241581,-409.81265157,0.00030136,2]
[311159565,1704946241589,-500.40558924,0.00030136,2]
[311159566,1704946241600,-500.0,0.00030136,2]
[311159567,1704946241609,-179.29970668,0.00030136,2]
[311159569,1704946241618,-530.19489255,0.00030136,2]
[311159570,1704946241627,-500.0,0.00030136,2]
[311159572,1704946241637,-500.0,0.00030136,2]
[311159573,1704946241646,-500.0,0.00030136,2]
[311159574,1704946241655,-500.0,0.00030136,2]
[311159575,1704946241666,-500.0,0.00030136,2]
[311159576,1704946241675,-500.0,0.00030136,2]
[311159577,1704946241684,-500.0,0.00030136,2]
[311159578,1704946241693,-509.38199583,0.00030136,2]
[311159579,1704946241703,-614.64769916,0.00030136,2]
[311159580,1704946241712,-500.0,0.00030136,2]
[311159581,1704946241721,-531.01278094,0.00030136,2]
[311159582,1704946241730,-500.0,0.00030136,2]
[311159583,1704946241740,-600.48,0.00030136,2]
[311159584,1704946241750,-502.28052706,0.00030136,2]
[311159585,1704946241759,-500.0,0.00030136,2]
[311159586,1704946241768,-500.0,0.00030136,2]
[311159587,1704946241777,-500.0,0.00030136,2]
[311159588,1704946241786,-500.0,0.00030136,2]
[311159589,1704946241795,-501.08575708,0.00030136,2]
[311159590,1704946241805,-500.0,0.00030136,2]
[311159591,1704946241814,-500.0,0.00030136,2]
[311159592,1704946241824,-500.0,0.00030136,2]
[311159593,1704946241833,-1684.83,0.00030136,2]
[311159594,1704946241842,-500.0,0.00030136,2]
[311159595,1704946241852,-500.96582501,0.00030136,2]
[311159596,1704946241860,-506.72182713,0.00030136,2]
[311159597,1704946241869,-500.0,0.00030136,2]
[311159598,1704946241879,-500.81343408,0.00030136,2]
[311159599,1704946241888,-500.0,0.00030136,2]
[311159600,1704946241896,-500.0,0.00030136,2]
[311159601,1704946241905,-593.4206134,0.00030136,2]
[311159602,1704946241914,-500.0,0.00030136,2]
[311159603,1704946241923,-500.0,0.00030136,2]
[311159604,1704946241932,-500.0,0.00030136,2]
[311159605,1704946241941,-1768.78,0.00030136,2]
[311159606,1704946241950,-500.0,0.00030136,2]
[311159607,1704946241959,-594.76805938,0.00030136,2]
[311159608,1704946241967,-500.0,0.00030136,2]
[311159609,1704946241976,-500.0,0.00030136,2]
[311159610,1704946241986,-500.0,0.00030136,2]
[311159611,1704946241995,-500.0,0.00030136,2]
[311159612,1704946242004,-500.0,0.00030136,2]
[311159613,1704946242013,-177.43908721,0.00030136,2]
[311159614,1704946242261,-322.56091279,0.00030136,2]
[311159615,1704946242270,-500.0,0.00030136,2]
[311159616,1704946242279,-500.0,0.00030136,2]
[311159617,1704946242288,-500.0,0.00030136,2]
[311159618,1704946242298,-500.0,0.00030136,2]
[311159619,1704946242307,-500.0,0.00030136,2]
[311159620,1704946242317,-500.0,0.00030136,2]
[311159621,1704946242326,-500.0,0.00030136,2]
[311159622,1704946242335,-421.0,0.00030136,2]
[311159623,1704946242346,-200.0,0.00030136,2]
[311159624,1704946242356,-500.0,0.00030136,2]
[311159625,1704946242365,-500.0,0.00030136,2]
[311159626,1704946242374,-472.92553593,0.00030136,2]
[311159627,1704946242384,-500.0,0.00030136,2]
[311159628,1704946242393,-500.0,0.00030136,2]
[311159629,1704946242403,-500.0,0.00030136,2]
[311159630,1704946242412,-186.76567446,0.00030136,2]
[311159631,1704946242421,-500.0,0.00030136,2]
[311159632,1704946242431,-500.0,0.00030136,2]
[311159633,1704946242440,-500.0,0.00030136,2]
[311159634,1704946242449,-500.0,0.00030136,2]
[311159635,1704946242459,-625.13,0.00030136,2]
[311159636,1704946242468,-500.0,0.00030136,2]
[311159637,1704946242478,-500.0,0.00030136,2]
[311159638,1704946242487,-418.33957218,0.00030136,2]
[311159639,1704946242496,-502.0635084,0.00030136,2]
[311159640,1704946242506,-642.73342,0.00030136,2]
[311159641,1704946242515,-500.0,0.00030136,2]
[311159642,1704946242524,-500.0,0.00030136,2]
[311159643,1704946242534,-500.0,0.00030136,2]
[311159644,1704946242544,-500.0,0.00030136,2]
[311159645,1704946242553,-160.73162302,0.00030136,2]
[311159646,1704946242563,-500.0,0.00030136,2]
[311159647,1704946242576,-498.4439831,0.00030136,2]
[311159648,1704946242585,-500.0,0.00030136,2]
[311159649,1704946242596,-500.0,0.00030136,2]
[311159650,1704946242607,-500.0,0.00030136,2]
[311159651,1704946242616,-500.0,0.00030136,2]
[311159652,1704946242626,-500.0,0.00030136,2]
[311159653,1704946242635,-500.0,0.00030136,2]
[311159654,1704946242644,-500.0,0.00030136,2]
[311159655,1704946242654,-500.0,0.00030136,2]
[311159656,1704946242663,-500.0,0.00030136,2]
[311159657,1704946242672,-525.95,0.00030136,2]
[311159658,1704946242682,-500.0,0.00030136,2]
[311159659,1704946242691,-500.0,0.00030136,2]
[311159660,1704946242700,-500.0,0.00030136,2]
[311159661,1704946242709,-500.0,0.00030136,2]
[311159662,1704946242719,-500.0,0.00030136,2]
[311159663,1704946242728,-345.71155924,0.00030136,2]
[311159664,1704946242737,-500.0,0.00030136,2]
[311159665,1704946242746,-500.0,0.00030136,2]
[311159666,1704946242755,-500.0,0.00030136,2]
[311159667,1704946242764,-791.65,0.00030136,2]
[311159668,1704946242773,-500.0,0.00030136,2]
[311159669,1704946242783,-500.0,0.00030136,2]
[311159670,1704946242792,-500.0,0.00030136,2]
[311159671,1704946242801,-623.43,0.00030136,2]
[311159672,1704946242810,-500.0,0.00030136,2]
[311159673,1704946242820,-508.19728668,0.00030136,2]
[311159674,1704946242829,-504.14164348,0.00030136,2]
[311159675,1704946242838,-500.0,0.00030136,2]
[311159676,1704946242850,-500.0,0.00030136,2]
[311159677,1704946242859,-500.0,0.00030136,2]
[311159678,1704946242868,-500.0,0.00030136,2]
[311159679,1704946242877,-500.0,0.00030136,2]
[311159680,1704946242886,-500.0,0.00030136,2]
[311159681,1704946242895,-500.0,0.00030136,2]
[311159682,1704946242905,-500.0,0.00030136,2]
[311159683,1704946242914,-500.0,0.00030136,2]
[311159684,1704946242923,-500.0,0.00030136,2]
[311159685,1704946242933,-500.0,0.00030136,2]
[311159686,1704946242943,-500.0,0.00030136,2]
[311159687,1704946242951,-505.8736009,0.00030136,2]
[311159688,1704946242961,-342.01621906,0.00030136,2]
[311159689,1704946242970,-500.0,0.00030136,2]
[311159690,1704946242980,-500.0,0.00030136,2]
[311159691,1704946242989,-732.65,0.00030136,2]
[311159692,1704946242999,-500.0,0.00030136,2]
[311159693,1704946243008,-500.0,0.00030136,2]
[311159695,1704946243017,-303.4997889,0.00030136,2]
[311159697,1704946243026,-556.4,0.00030136,2]
[311159699,1704946243035,-500.0,0.00030136,2]
[311159701,1704946243043,-501.00207667,0.00030136,2]
[311159702,1704946243052,-500.0,0.00030136,2]
[311159703,1704946243062,-500.0,0.00030136,2]
[311159704,1704946243071,-500.0,0.00030136,2]
[311159705,1704946243080,-500.0,0.00030136,2]
[311159706,1704946243089,-500.0,0.00030136,2]
[311159707,1704946243099,-500.0,0.00030136,2]
[311159708,1704946243109,-507.64157396,0.00030136,2]
[311159709,1704946243117,-500.0,0.00030136,2]
[311159710,1704946243126,-500.0,0.00030136,2]
[311159711,1704946243136,-500.41,0.00030136,2]
[311159712,1704946243145,-500.0,0.00030136,2]
[311159714,1704946243154,-500.0,0.00030136,2]
[311159716,1704946243164,-500.0,0.00030136,2]
[311159717,1704946243173,-175.33938275,0.00030136,2]
[311159719,1704946243182,-500.0,0.00030136,2]
[311159721,1704946243192,-150.0,0.00030136,2]
[311159724,1704946243202,-234.96184003,0.00030136,2]
[311159736,1704946243402,-265.03815997,0.00030136,2]
[311159737,1704946243411,-500.0,0.00030136,2]
[311159739,1704946243421,-500.0,0.00030136,2]
[311159740,1704946243430,-500.0,0.00030136,2]
[311159741,1704946243439,-513.12,0.00030136,2]
[311159743,1704946243449,-500.0,0.00030136,2]
[311159745,1704946243458,-500.0,0.00030136,2]
[311159746,1704946243468,-500.0,0.00030136,2]
[311159747,1704946243478,-505.50543993,0.00030136,2]
[311159748,1704946243488,-500.0,0.00030136,2]
[311159749,1704946243498,-173.82107059,0.00030136,2]
[311159755,1704946255194,1428.97777156,0.00012125,5]
[311159756,1704946286021,155.0,0.00012125,2]
[311159757,1704946308014,164.1040372,0.00012125,2]
[311159765,1704946417034,1791.03495825,0.00015998,5]
[311159766,1704946432593,155.26941536,0.00010913,2]
[311159767,1704946673017,4139.72516863,0.00012818,2]
[311159768,1704946773006,151.51515152,0.00012806,2]
[311159769,1704946934313,535.45293381,0.00012806,2]
[311159770,1704946953099,158.43835313,0.00012487,2]
[311159771,1704947017661,2816.58666967,0.00012685,2]
[311159772,1704947018078,-12000.0,0.00012685,2]
[311159773,1704947018191,-10083.41333033,0.00012685,2]
[311159774,1704947018367,-217.9620188,0.00012989,2]
[311159775,1704947021004,1143.3687968,0.00012684,2]
[311159776,1704947021431,1120.50142086,0.00012684,2]
[311159777,1704947021957,-6688.05505503,0.00012684,2]
[311159778,1704947022057,-136.49091949,0.00012684,2]
[311159779,1704947022429,509.10030575,0.00012684,2]
[311159780,1704947024997,-1215.32393818,0.00012684,2]
[311159781,1704947025226,-24.80252935,0.00012684,2]
[311159782,1704947069199,-245.0,0.00012677,2]
[311159783,1704947069387,-5.0,0.00012677,2]
[311159784,1704947304597,-4900.0,0.00013049,2]
[311159785,1704947304763,-100.0,0.00013049,2]
[311159786,1704947308540,-301.92534583,0.00013048,2]
[311159787,1704947308654,-6.16174175,0.00013048,2]
[311159788,1704947309277,295.76360408,0.00013048,2]
[311159789,1704947309303,301.92534583,0.00013048,2]
[311159790,1704947309819,-3078.21632348,0.00013048,2]
[311159791,1704947309946,-62.82074129,0.00013048,2]
[311159792,1704947310713,245.88461104,0.00013048,2]
[311159833,1704947364809,-12000.0,0.00013049,2]
[311159834,1704947364842,-6868.80777567,0.00013049,2]
[311159876,1704947384694,-5619.66333386,0.00013048,2]
[311159877,1704947384797,-114.68700681,0.00013048,2]
[311159879,1704947389274,-178.55476254,0.00013047,2]
[311159880,1704947389313,-2749.72253709,0.00013047,2]
[311159881,1704947389421,-59.76076122,0.00013047,2]
[311159882,1704947390002,191.04671629,0.00013047,2]
[311159912,1704947432639,-1133.66362836,0.00013433,2]
[311159913,1704947432650,-2345.11422348,0.00013433,2]
[311159914,1704947432659,-1227.90028602,0.00013433,2]
[311160059,1704947437959,-7649.4516989,0.00013432,2]
[311160060,1704947438079,-16167.497074,0.00013432,2]
[311160061,1704947438088,-7988.52269899,0.00013432,2]
[311160062,1704947438097,-761.97238472,0.00013433,2]
[311160063,1704947438107,-560.56224867,0.00013433,2]
[311160064,1704947438116,-166.65114347,0.00013433,2]
[311160065,1704947438125,-901.83243089,0.00013433,2]
[311160066,1704947438134,-1250.86956895,0.00013434,2]
[311160067,1704947438143,-155.0,0.00013434,2]
[311160068,1704947438152,-643.07386759,0.00013434,2]
[311160069,1704947438162,-1067.32094851,0.00013434,2]
[311160070,1704947438171,-242.63833742,0.00013435,2]
[311160071,1704947438181,-301.352632,0.00013435,2]
[311160072,1704947438190,-82528.18457841,0.00013435,2]
[311160073,1704947438199,-270.90645909,0.00013436,2]
[311160074,1704947438208,-947.80013116,0.00013436,2]
[311160075,1704947438218,-155.0,0.00013436,2]
[311160076,1704947438227,-19829.54482794,0.00013436,2]
[311160077,1704947438236,-20865.20196494,0.00013436,2]
[311160078,1704947438245,-360.80127126,0.00013437,2]
[311160079,1704947438254,-2927.79076094,0.00013437,2]
[311160080,1704947438263,-1587.53319979,0.00013437,2]
[311160081,1704947438273,-213.00235315,0.00013437,2]
[311160082,1704947438282,-260.63257169,0.00013437,2]
[311160083,1704947438291,-451.81472846,0.00013437,2]
[311160084,1704947438300,-525.71054623,0.00013437,2]
[311160085,1704947438310,-554.2709692,0.00013437,2]
[311160086,1704947438319,-155.0,0.00013437,2]
[311160087,1704947438328,-366.13995149,0.00013437,2]
[311160088,1704947438337,-1291.19265067,0.00013437,2]
[311160089,1704947438347,-2035.15445086,0.00013437,2]
[311160090,1704947438356,-174.89741352,0.00013437,2]
[311160091,1704947438365,-155.0,0.00013437,2]
[311160092,1704947438374,-155.0,0.00013438,2]
[311160093,1704947438383,-509.10030575,0.00013438,2]
[311160094,1704947438392,-19663.58309656,0.00013438,2]
[311160095,1704947438401,-261.8211746,0.00013438,2]
[311160096,1704947438411,-976.18563318,0.00013438,2]
[311160097,1704947438420,-178.47960527,0.00013438,2]
[311160098,1704947438429,-155.0,0.00013439,2]
[311160099,1704947438438,-20836.46606025,0.00013439,2]
[311160100,1704947438447,-400.09836622,0.00013439,2]
[311160101,1704947438456,-4789.41827786,0.00013439,2]
[311160102,1704947438466,-2263.06859118,0.00013439,2]
[311160103,1704947438475,-155.09015253,0.00013439,2]
[311160104,1704947438484,-197.4242955,0.00013439,2]
[311160105,1704947438493,-308.08708758,0.0001344,2]
[311160106,1704947438502,-964.75498104,0.0001344,2]
[311160107,1704947438513,-7945.04739538,0.0001344,2]
[311160108,1704947438522,-860.94215638,0.0001344,2]
[311160109,1704947438531,-198.86702102,0.0001344,2]
[311160110,1704947438541,-587.15396194,0.00013441,2]
[311160111,1704947438550,-521.06936744,0.00013441,2]
[311160112,1704947438560,-1466.31228556,0.00013441,2]
[311160113,1704947438569,-36895.86463632,0.00013441,2]
[311160114,1704947438579,-2556.55190621,0.0001345,2]